bitfinex/quotes_ETHUSD_20241104
["timestamp","ask_amount","ask_price","bid_price","bid_amount"]
[1730688641430,4.0893033,2482.2,2481.9,0.13543436]
[1730688641634,0.0605933,2482.2,2482.0,0.1352988]
[1730688641865,0.0605933,2482.2,2481.7,4.57949]
[1730688642018,4.0893133,2482.2,2481.7,1.410905]
[1730688642357,0.0605933,2482.2,2481.8,0.13549752]
[1730688642725,0.0605933,2482.2,2481.7,5.440375]
[1730688642924,0.0605933,2482.2,2481.9,0.13539816]
[1730688643136,0.0605933,2482.2,2481.8,0.21607471]
[1730688643336,0.0605933,2482.2,2481.8,1.18467568]
[1730688643733,0.0605933,2482.2,2481.8,5.21399568]
[1730688644149,0.0605933,2482.2,2481.8,1.10409849]
[1730688644363,4.0893133,2482.2,2481.8,1.10409849]
[1730688644669,0.0605933,2482.2,2481.8,0.13549752]
[1730688644963,0.0605933,2482.2,2481.7,0.55]
[1730688645193,0.0605933,2482.2,2481.9,0.13539816]
[1730688645325,0.0605933,2482.2,2482.0,3.8073021]
[1730688645528,0.0605933,2482.2,2482.1,4.6594025]
[1730688645727,0.0605933,2482.2,2482.1,6.26482066]
[1730688645927,4.0874533,2483.4,2482.8,4.0276]
[1730688645928,0.0605933,2483.4,2482.8,4.0276]
[1730688646134,0.0605933,2483.4,2483.0,4.5773]
[1730688646332,0.0605933,2483.4,2483.2,4.57705]
[1730688646641,0.0605933,2483.4,2483.3,0.13360746]
[1730688646841,0.0605933,2483.4,2483.1,0.55]
[1730688647176,0.0605933,2483.4,2483.2,0.59143571]
[1730688648233,0.0605933,2483.4,2483.2,0.13370671]
[1730688648579,4.0873433,2483.4,2482.9,0.55]
[1730688648734,4.0873433,2483.4,2483.3,0.13345803]
[1730688648937,4.0873433,2483.4,2482.9,0.55]
[1730688649243,0.0605933,2483.4,2483.0,0.13375581]
[1730688649443,4.0874733,2483.4,2483.0,0.13375581]
[1730688649659,4.02692,2483.3,2483.0,0.13375581]
[1730688650182,4.02716,2483.2,2483.0,0.13375581]
[1730688650353,4.02716,2483.2,2482.6,4.65853459]
[1730688650672,4.02692,2483.3,2482.7,1.24939367]
[1730688650972,4.02723,2483.1,2482.8,0.13395437]
[1730688651365,4.02692,2483.3,2482.8,0.13395437]
[1730688651841,0.0605933,2483.4,2482.8,0.13395437]
[1730688652041,4.02691,2483.3,2482.9,0.55]
[1730688652250,4.02691,2483.3,2483.0,0.1338016]
[1730688652534,0.0605933,2483.4,2483.1,0.55]
[1730688652966,0.0605933,2483.4,2483.2,0.13362717]
[1730688654342,0.0605933,2483.4,2483.2,4.16061717]
[1730688654546,0.0605933,2483.4,2483.3,4.49795172]
[1730688654736,0.0605933,2483.4,2483.3,5.12848419]
[1730688654941,0.0605933,2483.4,2483.3,5.2620121]
[1730688655542,0.0605933,2483.4,2483.3,1.2351221]
[1730688655768,0.0605933,2483.4,2483.3,5.18147963]
[1730688656079,0.0605933,2483.4,2483.3,1.2351149]
[1730688656384,0.0605933,2483.4,2483.3,5.2620049]
[1730688656556,0.0605933,2483.4,2483.3,1.2351149]
[1730688657152,0.0605933,2483.4,2483.3,1.23511503]
[1730688657569,0.0605933,2483.4,2483.3,1.15458963]
[1730688657877,0.0605933,2483.4,2483.3,1.23511528]
[1730688658182,0.0605933,2483.4,2483.3,1.23511527]
[1730688659545,0.0605933,2483.4,2483.3,1.15458963]
[1730688660366,0.0605933,2483.4,2483.3,0.13352791]
[1730688660787,0.0605933,2483.4,2483.3,4.65742278]
[1730688661088,0.0605933,2483.4,2483.3,4.79061076]
[1730688661254,0.0605933,2483.4,2483.3,0.76372076]
[1730688661459,0.0605933,2483.4,2483.3,0.13318798]
[1730688661650,0.0605933,2483.4,2483.2,4.10755929]
[1730688661845,0.0605933,2483.4,2483.3,0.54394391]
[1730688662396,0.0605933,2483.4,2483.3,5.12083391]
[1730688662688,4.80323,2484.4,2483.9,0.55]
[1730688662856,4.0254,2484.3,2483.6,4.02636]
[1730688663190,4.02544,2484.2,2483.7,0.55]
[1730688663496,4.02527,2484.3,2483.7,0.13268984]
[1730688663649,4.02571,2484.1,2483.7,0.13268984]
[1730688663850,0.0605933,2484.6,2483.8,0.63052185]
[1730688664075,4.0854433,2484.6,2484.2,0.55]
[1730688664255,0.0605933,2484.6,2484.3,0.13197905]
[1730688664444,4.02496,2484.5,2484.1,0.55]
[1730688664649,4.02512,2484.4,2484.2,0.13207823]
[1730688664961,4.02521,2484.4,2483.9,0.55]
[1730688665273,4.02496,2484.5,2484.0,0.08050667]
[1730688665474,4.02496,2484.5,2484.1,0.13217741]
[1730688665864,0.8386933,2484.6,2484.1,0.13217741]
[1730688665865,0.0605933,2484.6,2484.2,0.63050669]
[1730688666185,0.0605933,2484.6,2484.3,0.13197905]
[1730688666388,0.0605933,2484.6,2484.4,0.55]
[1730688666684,0.0605933,2484.6,2484.3,0.55]
[1730688666853,0.0605933,2484.6,2484.5,0.13168682]
[1730688667045,0.0605933,2484.6,2484.4,0.13178597]
[1730688667288,0.0605933,2484.6,2484.5,0.13168682]
[1730688667584,0.0605933,2484.6,2484.2,0.55]
[1730688667789,0.0605933,2484.6,2484.5,0.13138822]
[1730688669593,0.0605933,2484.6,2484.5,8.51364032]
[1730688669810,0.001,2485.7,2484.5,8.51364032]
[1730688669811,4.02412,2485.7,2484.5,8.51364032]
[1730688670006,4.02412,2485.7,2485.3,4.57352]
[1730688670007,0.001,2485.7,2485.3,4.57352]
[1730688670298,0.001,2485.7,2485.5,4.57328]
[1730688670456,0.001,2485.7,2485.6,4.57317]
[1730688670654,0.001,2485.7,2485.6,0.68021857]
[1730688670856,0.001,2485.7,2485.6,0.13021857]
[1730688671056,0.001,2485.7,2485.5,0.08045669]
[1730688671288,0.001,2485.7,2485.6,0.55]
[1730688671462,0.001,2485.7,2485.6,0.68021857]
[1730688672087,0.001,2485.7,2485.6,4.70338857]
[1730688673625,0.001,2485.7,2485.6,8.59112974]
[1730688673823,0.001,2485.7,2485.6,8.51069067]
[1730688674113,0.001,2485.7,2485.6,9.89930655]
[1730688674880,0.001,2485.7,2485.6,6.09200445]
[1730688675118,0.001,2485.7,2485.6,6.17244671]
[1730688675427,0.0605933,2485.8,2485.7,4.57301]
[1730688675776,0.0605933,2485.8,2485.7,4.70282398]
[1730688675980,0.0605933,2485.8,2485.7,6.16702355]
[1730688676614,0.0605933,2485.8,2485.7,6.24746708]
[1730688677190,0.0605933,2485.8,2485.7,6.16702355]
[1730688678240,0.0605933,2485.8,2485.7,2.14401355]
[1730688678528,0.0605933,2485.8,2485.7,0.12981398]
[1730688678819,0.0605933,2485.8,2485.7,4.15282398]
[1730688679313,0.0605933,2485.8,2485.7,4.23326613]
[1730688679725,0.0605933,2485.8,2485.7,4.15282398]
[1730688679920,0.0605933,2485.8,2485.7,5.90215359]
[1730688681063,0.0605933,2485.8,2485.7,1.87914359]
[1730688681223,0.0605933,2485.8,2485.7,4.78326966]
[1730688681665,0.0605933,2485.8,2485.7,4.70282398]
[1730688682034,0.0605933,2485.8,2485.7,0.67981398]
[1730688683864,0.0605933,2485.8,2485.7,0.76026023]
[1730688684045,0.0605933,2485.8,2485.7,4.78327023]
[1730688684371,0.0605933,2485.8,2485.7,1.64089525]
[1730688684553,0.0605933,2485.8,2485.7,1.560449]
[1730688684873,0.0605933,2485.8,2485.7,0.67981398]
[1730688685053,0.8451933,2485.8,2485.7,0.12981398]
[1730688685275,4.8680333,2485.8,2485.7,0.12981398]
[1730688685551,4.8680833,2485.8,2485.7,0.12088852]
[1730688685975,4.02312,2485.7,2484.9,8.04841]
[1730688686139,4.02312,2485.7,2485.0,4.02409]
[1730688686332,4.02319,2485.6,2485.0,0.12154276]
[1730688686572,0.7846,2485.5,2485.0,0.12154276]
[1730688686738,0.7846,2485.5,2485.0,0.20201004]
[1730688686938,4.80795,2485.5,2485.0,0.08046728]
[1730688687181,4.02358,2485.4,2485.1,0.11743166]
[1730688687677,4.02376,2485.3,2484.4,4.02502]
[1730688687884,8.6155521,2485.3,2485.2,0.11733962]
[1730688688173,0.0705933,2485.8,2484.5,0.08047569]
[1730688688174,7.8305921,2485.6,2484.5,0.08047569]
[1730688688378,0.7846,2485.6,2485.0,4.02405]
[1730688688669,0.7846,2485.6,2485.0,4.426445]
[1730688688855,0.7846,2485.6,2485.1,0.11352679]
[1730688689054,0.7846,2485.6,2485.2,0.55]
[1730688689269,0.7846,2485.6,2485.2,0.63046571]
[1730688689477,0.7846,2485.6,2485.3,0.11334965]
[1730688690638,4.8078,2485.6,2485.3,0.11334965]
[1730688691583,0.7846,2485.6,2485.3,0.11334965]
[1730688693277,4.02349,2485.4,2485.3,0.11334965]
[1730688693576,1.27140833,2485.6,2484.7,0.0804758]
[1730688693880,4.02354,2485.4,2484.9,0.55]
[1730688694049,4.02354,2485.4,2484.8,4.02446]
[1730688694050,4.02393,2485.2,2484.8,0.1138452]
[1730688694239,4.80853,2485.2,2485.0,0.11364695]
[1730688694434,4.80853,2485.2,2484.5,4.02487]
[1730688694435,4.80853,2485.2,2484.9,0.11374607]
[1730688694747,4.80853,2485.2,2484.5,4.02487]
[1730688694748,4.80854,2485.2,2485.0,0.11364695]
[1730688694980,4.02398,2485.1,2484.2,5.636]
[1730688695139,4.02398,2485.1,2483.9,4.04585]
[1730688695342,0.7846,2485.2,2484.1,4.0256]
[1730688695545,4.80848,2485.2,2484.5,4.02482]
[1730688695845,4.02423,2485.0,2484.3,4.02516]
[1730688696065,4.02423,2485.0,2484.4,0.402516]
[1730688696276,4.02423,2485.0,2484.5,0.63048791]
[1730688696580,4.02416,2485.0,2484.5,0.55]
[1730688696782,4.02476,2484.7,2484.0,1.610785]
[1730688696942,4.505696,2484.7,2483.8,4.02595]
[1730688697143,4.02524,2484.4,2483.7,4.02624]
[1730688697843,0.8113,2484.0,2483.2,4.02705]
[1730688698221,0.8113,2484.0,2483.0,0.42052343]
[1730688698222,4.02618,2483.8,2483.1,4.02714]
[1730688698876,4.02618,2483.8,2483.0,4.02733]
[1730688698877,4.02635,2483.7,2483.0,4.02733]
[1730688699200,4.02633,2483.7,2483.0,4.02733]
[1730688699500,4.02618,2483.8,2483.0,4.02733]
[1730688699501,4.02618,2483.8,2483.1,0.55]
[1730688699701,4.48240887,2484.0,2482.7,0.7655]
[1730688699702,4.02651,2483.6,2482.9,0.55]
[1730688699915,4.02651,2483.6,2482.9,0.534304]
[1730688700097,4.02651,2483.6,2482.9,0.6148387]
[1730688700098,4.0265,2483.6,2482.9,0.6148387]
[1730688700268,4.02694,2483.3,2482.6,0.06041173]
[1730688700606,4.02716,2483.2,2482.6,0.14095545]
[1730688700909,4.02694,2483.3,2482.6,4.16897133]
[1730688701069,0.8113,2483.2,2482.7,4.02785]
[1730688701267,0.8113,2483.2,2482.6,0.06041173]
[1730688701866,0.8113,2483.2,2482.7,0.09770338]
[1730688702062,4.83836,2483.2,2482.7,0.09770338]
[1730688702311,0.8113,2483.2,2482.7,0.09770338]
[1730688702485,0.8113,2483.2,2482.7,4.12552338]
[1730688702797,0.8113,2483.2,2482.7,0.09770338]
[1730688703201,0.8113,2483.2,2482.7,1.01680447]
[1730688703400,4.83846,2483.2,2482.7,0.09770338]
[1730688703717,4.02755,2482.9,2482.7,0.09770338]
[1730688703919,4.02771,2482.8,2482.7,0.09770338]
[1730688704203,8.0552,2482.9,2482.7,0.09770338]
[1730688704433,4.0273,2483.1,2482.7,0.09770338]
[1730688704763,4.0273,2483.1,2482.6,0.06041173]
[1730688704969,4.0273,2483.1,2482.8,0.09760409]
[1730688705306,4.0273,2483.1,2482.7,0.09770338]
[1730688705307,4.02742,2483.0,2482.7,0.09770338]
[1730688705602,4.02742,2483.0,2482.8,0.09760409]
[1730688705990,4.02742,2483.0,2482.6,0.06041173]
[1730688706201,4.02742,2483.0,2482.9,0.0975048]
[1730688706493,0.8113,2483.2,2482.6,0.06041173]
[1730688706692,4.02638,2483.7,2482.8,4.02769]
[1730688706901,4.83788,2483.5,2482.6,0.06041173]
[1730688707097,4.83788,2483.5,2482.7,4.57774]
[1730688707288,8.86455,2483.5,2482.7,4.57774]
[1730688707483,8.86455,2483.5,2482.8,0.09760409]
[1730688707484,4.83788,2483.5,2482.8,0.09760409]
[1730688707687,4.02709,2483.2,2482.8,0.97396767]
[1730688707989,4.02673,2483.4,2482.8,0.09760409]
[1730688708188,4.02691,2483.3,2482.8,0.09760409]
[1730688708391,4.02691,2483.3,2482.6,4.08844173]
[1730688708599,4.02673,2483.4,2482.9,0.0975048]
[1730688708797,4.02673,2483.4,2482.7,4.1083206]
[1730688708988,4.02673,2483.4,2483.0,0.09740553]
[1730688709311,4.02673,2483.4,2483.1,0.09730626]
[1730688709711,4.02673,2483.4,2482.8,0.81966523]
[1730688710209,0.8113,2483.5,2482.9,0.0975048]
[1730688710387,4.02676,2483.4,2482.9,0.0975048]
[1730688711023,0.8113,2483.5,2482.9,0.0975048]
[1730688711292,0.8113,2483.5,2482.9,0.60003534]
[1730688712297,4.02685,2483.4,2482.9,0.60003534]
[1730688712496,4.83788,2483.5,2482.9,0.60003534]
[1730688712711,4.83788,2483.5,2482.9,0.0975048]
[1730688713247,4.02677,2483.4,2482.9,0.0975048]
[1730688713609,4.83788,2483.5,2482.9,0.0975048]
[1730688714198,4.02689,2483.4,2482.7,0.55]
[1730688714395,4.02689,2483.4,2483.0,0.09773879]
[1730688714611,4.02689,2483.4,2482.7,4.57786]
[1730688714909,4.48240887,2483.4,2482.6,0.06041173]
[1730688715110,4.03626,2483.7,2482.6,0.06041173]
[1730688715111,4.02774,2482.8,2482.6,0.06041173]
[1730688715311,4.02774,2482.8,2482.7,0.09803665]
[1730688715925,4.02756,2482.9,2482.7,0.09803665]
[1730688716352,0.8113,2483.0,2482.7,0.09803665]
[1730688716645,0.8113,2483.3,2482.7,4.12590665]
[1730688716810,0.8113,2483.3,2482.7,5.02389149]
[1730688717341,4.8383,2483.3,2482.7,0.99602149]
[1730688718212,8.86532,2483.3,2482.7,0.99602149]
[1730688718418,4.02712,2483.2,2482.7,0.99602149]
[1730688718947,4.8383,2483.3,2482.7,5.02385149]
[1730688719241,0.8113,2483.3,2482.7,5.02385149]
[1730688719940,4.02708,2483.2,2482.7,0.99602149]
[1730688720103,0.8113,2483.3,2482.7,0.09803665]
[1730688720302,4.02766,2482.9,2482.7,0.09803665]
[1730688720501,4.83901,2482.8,2482.3,0.7655]
[1730688720815,0.8113,2482.8,2482.4,0.0890674]
[1730688721341,4.83911,2482.8,2482.4,0.0890674]
[1730688721843,0.8113,2482.8,2482.4,0.0890674]
[1730688722144,4.83902,2482.8,2482.4,0.0890674]
[1730688722442,9.350732,2482.8,2482.1,4.57883]
[1730688722641,0.8113,2482.8,2482.5,0.08896809]
[1730688722841,4.02695,2483.3,2482.6,4.02801]
[1730688722842,4.02719,2483.2,2482.6,4.02801]
[1730688723042,3.01,2483.6,2482.9,4.02745]
[1730688723043,4.83781,2483.6,2482.9,4.02745]
[1730688723401,8.86433,2483.6,2483.0,0.08851738]
[1730688723645,4.83781,2483.6,2483.0,0.08851738]
[1730688724105,4.02675,2483.4,2483.0,0.08851738]
[1730688724301,4.83781,2483.6,2482.7,4.79326]
[1730688724302,8.86436,2483.6,2482.8,4.02759]
[1730688724545,4.0266,2483.5,2482.9,0.08861665]
[1730688725243,4.0266,2483.5,2482.9,4.11607665]
[1730688725449,4.0266,2483.5,2482.9,0.08861665]
[1730688726151,0.8113,2483.6,2483.0,0.08054339]
[1730688726317,4.02658,2483.5,2483.0,0.08843502]
[1730688726511,0.8113,2483.6,2483.0,4.61560902]
[1730688726838,0.8113,2483.6,2483.1,4.02722]
[1730688727005,4.02636,2483.7,2483.2,0.7655]
[1730688727210,4.65657131,2483.9,2483.2,0.85372963]
[1730688727408,4.0261,2483.8,2483.2,4.88077963]
[1730688727618,4.02595,2483.9,2483.3,4.91765996]
[1730688727853,4.02634,2483.7,2483.3,0.97893034]
[1730688728549,4.02634,2483.7,2483.3,0.08813038]
[1730688728745,4.02634,2483.7,2483.2,0.7655]
[1730688728746,4.02607,2483.9,2483.2,4.79255]
[1730688728949,4.83707,2484.0,2483.4,4.02672]
[1730688729151,5.43183244,2484.2,2483.5,4.831793]
[1730688729357,8.8269,2484.2,2483.5,4.91231621]
[1730688729653,4.02594,2483.9,2483.5,0.89323229]
[1730688730215,4.80136,2484.2,2483.5,0.89323229]
[1730688730421,4.02586,2484.0,2483.5,0.89323229]
[1730688730640,4.02586,2484.0,2483.6,0.49199523]
[1730688731147,4.02586,2484.0,2483.7,0.08751161]
[1730688731519,4.02561,2484.1,2483.7,0.08751161]
[1730688732038,4.02578,2484.0,2483.7,0.08751161]
[1730688732445,4.02561,2484.1,2483.7,0.84691161]
[1730688732634,4.02561,2484.1,2483.7,0.7594]
[1730688732831,8.05132,2484.1,2483.8,0.08738496]
[1730688733153,8.05132,2484.1,2483.9,0.08728576]
[1730688733359,4.02576,2484.0,2483.7,0.7594]
[1730688733740,4.02561,2484.1,2483.5,0.55]
[1730688733922,4.02561,2484.1,2483.6,0.533603]
[1730688734265,4.02584,2484.0,2483.6,0.533603]
[1730688735153,4.02561,2484.1,2483.6,0.533603]
[1730688735355,4.57457602,2484.2,2483.6,4.560003]
[1730688735356,4.02546,2484.2,2483.6,4.560003]
[1730688735517,4.02562,2484.1,2483.7,0.51905262]
[1730688735862,4.57457602,2484.5,2483.8,0.7594]
[1730688735863,7.82429602,2484.2,2483.8,0.7594]
[1730688736156,4.02522,2484.4,2483.8,4.86599892]
[1730688736822,4.02522,2484.4,2483.8,0.7594]
[1730688737162,4.02512,2484.4,2483.8,4.78548]
[1730688737452,4.02512,2484.4,2483.9,0.93306526]
[1730688737658,0.63037806,2484.6,2483.9,0.93306526]
[1730688737659,0.63037806,2484.6,2484.1,4.02559]
[1730688737817,0.63037806,2484.6,2484.2,4.78483]
[1730688738016,4.80035,2484.8,2484.2,4.78483]
[1730688738017,8.04853,2485.0,2484.3,4.02524]
[1730688738265,4.02447,2484.8,2484.2,4.78483]
[1730688738558,4.02447,2484.8,2484.2,0.7594]
[1730688738559,4.02493,2484.6,2484.2,0.7594]
[1730688738726,4.80073,2484.6,2484.2,0.7594]
[1730688739064,4.80068,2484.6,2484.2,0.7594]
[1730688739214,7.82333602,2484.8,2484.2,0.7594]
[1730688739596,4.02456,2484.8,2484.2,4.78476]
[1730688739754,4.02425,2485.0,2484.3,4.503726]
[1730688739913,4.02425,2485.0,2484.3,4.584222]
[1730688740315,4.02454,2484.8,2484.3,0.478476]
[1730688740756,4.02454,2484.8,2484.2,0.7594]
[1730688740757,4.02479,2484.6,2484.2,0.7594]
[1730688741173,4.02495,2484.5,2484.0,0.55]
[1730688741335,4.02495,2484.5,2483.9,4.78524]
[1730688741661,4.02479,2484.6,2484.0,4.02565]
[1730688741824,4.0248,2484.6,2484.1,0.55]
[1730688742162,11.84796602,2484.8,2484.1,1.16400749]
[1730688742359,4.02477,2484.7,2484.1,1.16400749]
[1730688742563,4.02504,2484.5,2483.9,0.7594]
[1730688742762,7.82374602,2484.5,2483.9,0.7594]
[1730688742931,4.02497,2484.5,2483.9,0.7594]
[1730688743355,4.02516,2484.4,2483.9,0.7594]
[1730688743676,4.02497,2484.5,2483.9,5.263776]
[1730688743860,4.02467,2484.7,2484.0,4.02574]
[1730688744446,4.02481,2484.6,2483.9,1.31846432]
[1730688744774,4.02519,2484.4,2483.9,1.237956]
[1730688745451,4.02519,2484.4,2483.9,0.7594]
[1730688745773,4.02532,2484.3,2483.9,0.7594]
[1730688745972,4.02519,2484.4,2483.9,0.7594]
[1730688746550,8.05044,2484.4,2483.9,0.7594]
[1730688747112,4.02531,2484.3,2484.0,0.08687113]
[1730688747577,4.02519,2484.4,2484.0,0.08687113]
[1730688747780,4.02497,2484.5,2484.0,0.08687113]
[1730688749293,4.57927602,2484.8,2484.1,0.8088]
[1730688749453,4.0248,2484.6,2484.1,0.8088]
[1730688749854,4.0248,2484.6,2484.2,0.08669105]
[1730688750492,4.02456,2484.8,2484.2,4.11211105]
[1730688751056,4.02456,2484.8,2484.2,0.08669105]
[1730688751275,4.02456,2484.8,2484.2,4.61221456]
[1730688751669,4.02435,2484.9,2484.3,4.57518]
[1730688751869,4.02426,2485.0,2484.5,0.8088]
[1730688752283,4.0239,2485.2,2484.6,0.0863218]
[1730688752462,4.02398,2485.1,2484.6,0.0863218]
[1730688752655,4.02398,2485.1,2484.6,0.98083598]
[1730688752861,4.02461,2484.8,2484.6,0.0863218]
[1730688753173,4.80511,2484.8,2484.6,0.0863218]
[1730688753380,4.57927602,2484.8,2484.3,0.8088]
[1730688753567,4.02463,2484.7,2484.0,4.02574]
[1730688753786,4.02486,2484.6,2484.0,4.02574]
[1730688754091,8.60383602,2484.8,2484.2,0.8088]
[1730688754294,4.02456,2484.8,2484.2,4.91466041]
[1730688754502,4.0244,2484.9,2484.3,4.02526]
[1730688754677,4.0244,2484.9,2484.2,4.83416]
[1730688755002,4.0244,2484.9,2484.2,8.9400089]
[1730688755160,4.02455,2484.8,2484.3,0.94784629]
[1730688755365,4.02473,2484.7,2484.2,0.8088]
[1730688755582,4.0246,2484.8,2484.2,0.8088]
[1730688755786,4.02414,2485.0,2484.3,0.55]
[1730688756089,4.02368,2485.3,2484.7,4.83334]
[1730688756296,4.02368,2485.3,2484.7,0.8088]
[1730688756596,4.02384,2485.2,2484.7,0.8088]
[1730688757300,4.02368,2485.3,2484.7,0.8088]
[1730688757594,4.02389,2485.2,2484.7,0.8088]
[1730688757795,4.02389,2485.2,2484.7,1.292148]
[1730688757965,4.02368,2485.3,2484.7,1.292148]
[1730688758869,4.02385,2485.2,2484.7,1.292148]
[1730688759295,4.02368,2485.3,2484.7,1.292148]
[1730688759504,4.02368,2485.3,2484.7,5.316758]
[1730688759709,4.02368,2485.3,2484.8,0.53972429]
[1730688760896,3.79877602,2485.1,2484.4,0.7933]
[1730688761096,4.02393,2485.2,2484.5,4.02493]
[1730688761269,8.04786,2485.2,2484.6,0.7933]
[1730688761480,4.02393,2485.2,2484.7,0.481823]
[1730688761859,4.02393,2485.2,2484.8,0.08300861]
[1730688762071,4.02391,2485.2,2484.8,0.08300861]
[1730688762296,7.82236602,2485.4,2484.8,0.08300861]
[1730688762500,4.02375,2485.3,2484.8,0.08300861]
[1730688762698,4.02375,2485.3,2484.8,0.62129177]
[1730688762895,3.79877602,2485.4,2484.8,0.62129177]
[1730688763101,4.02379,2485.3,2484.8,0.08300861]
[1730688763304,4.02365,2485.3,2484.8,0.08300861]
[1730688763623,4.02398,2485.1,2484.9,0.08290948]
[1730688763904,4.02398,2485.1,2484.6,0.7933]
[1730688764199,4.02398,2485.1,2484.7,0.08310774]
[1730688765107,4.02375,2485.3,2484.7,0.08310774]
[1730688765309,4.02382,2485.2,2484.7,0.08310774]
[1730688765509,4.02382,2485.2,2484.7,0.49011677]
[1730688765807,4.02382,2485.2,2484.8,0.08300861]
[1730688765977,3.79877602,2485.4,2484.8,0.08300861]
[1730688766181,4.02367,2485.3,2484.8,0.08300861]
[1730688766385,4.02367,2485.3,2484.8,1.02459115]
[1730688767383,4.02367,2485.3,2484.9,0.7933]
[1730688767607,4.02367,2485.3,2484.9,0.87620948]
[1730688768113,8.04742,2485.3,2484.9,0.87620948]
[1730688768578,4.02383,2485.2,2484.9,0.87620948]
[1730688768765,4.02383,2485.2,2484.9,0.7933]
[1730688769214,4.02367,2485.3,2484.9,0.7933]
[1730688769721,8.04741,2485.3,2485.0,0.08281036]
[1730688770505,4.02367,2485.3,2485.0,0.08281036]
[1730688771073,8.04742,2485.3,2484.9,0.7933]
[1730688771273,8.04744,2485.3,2485.1,0.08271125]
[1730688771475,4.02367,2485.3,2485.0,0.08281036]
[1730688771775,4.02367,2485.3,2485.1,0.08269082]
[1730688771977,4.02382,2485.2,2484.9,0.7933]
[1730688772973,0.7743,2485.5,2484.9,0.7933]
[1730688772974,4.024,2485.1,2484.9,0.7933]
[1730688775910,4.02374,2485.3,2484.9,0.7933]
[1730688776105,4.02383,2485.2,2484.9,0.7933]
[1730688776921,4.02383,2485.2,2485.0,0.08278993]
[1730688777156,4.02374,2485.3,2485.0,0.08278993]
[1730688777682,4.79765,2485.5,2485.0,0.08278993]
[1730688777683,4.02383,2485.2,2485.0,0.08278993]
[1730688777889,4.02398,2485.1,2485.0,0.08278993]
[1730688778327,4.02398,2485.1,2484.6,0.7933]
[1730688778487,4.02398,2485.1,2484.6,1.677644]
[1730688778693,4.02398,2485.1,2484.7,0.08308731]
[1730688778922,4.02415,2485.0,2484.7,0.08308731]
[1730688779219,4.02401,2485.1,2484.7,0.08308731]
[1730688779986,3.79877602,2485.3,2484.8,0.55]
[1730688780218,4.02363,2485.4,2484.8,4.7409733]
[1730688780531,0.7743,2485.5,2484.9,0.7933]
[1730688780822,0.7743,2485.5,2485.0,0.08278993]
[1730688781048,4.02379,2485.3,2485.0,0.08278993]
[1730688781538,4.02334,2485.5,2485.0,0.08278993]
[1730688781910,4.02367,2485.3,2485.0,0.49809228]
[1730688782105,4.02367,2485.3,2485.1,0.08268398]
[1730688782447,4.02367,2485.3,2484.9,0.7933]
[1730688782644,0.7743,2485.3,2484.9,0.7933]
[1730688782806,4.02367,2485.3,2484.9,0.7933]
[1730688783007,4.02367,2485.3,2485.0,0.08278309]
[1730688783227,3.0,2485.7,2485.0,0.08278309]
[1730688783228,6.55414928,2485.7,2485.2,0.7933]
[1730688783412,4.0835433,2485.8,2485.2,4.8171]
[1730688783627,8.1065233,2485.8,2485.3,0.939096]
[1730688783831,4.02319,2485.6,2485.2,0.7933]
[1730688784017,4.02319,2485.6,2485.3,0.08246533]
[1730688784606,4.02345,2485.5,2485.2,0.7933]
[1730688784824,4.02351,2485.4,2485.2,0.7933]
[1730688785055,4.02342,2485.5,2485.2,0.7933]
[1730688785844,4.02314,2485.7,2485.2,0.7933]
[1730688786046,4.0835533,2485.8,2485.2,1.28309039]
[1730688786219,4.0835533,2485.8,2485.2,1.3635569]
[1730688786412,0.0605933,2485.8,2485.2,5.3873469]
[1730688786607,0.0605933,2485.8,2485.2,5.3872969]
[1730688786809,0.0605933,2485.8,2485.2,9.4109969]
[1730688787013,0.0605933,2485.8,2485.3,0.94109969]
[1730688787703,0.0605933,2485.8,2485.4,5.36678]
[1730688788233,0.0605933,2485.8,2485.4,1.3433]
[1730688788662,4.0834433,2485.8,2485.4,1.3433]
[1730688789021,0.0605933,2485.8,2485.4,1.3433]
[1730688789245,0.0605933,2485.8,2485.4,2.02308901]
[1730688789455,4.0835433,2485.8,2485.4,1.47308901]
[1730688789760,4.02309,2485.7,2485.4,0.7933]
[1730688790136,4.02343,2485.5,2484.8,4.79534]
[1730688790339,4.02333,2485.5,2484.8,0.771]
[1730688790545,4.02391,2485.2,2484.8,0.771]
[1730688790840,4.02398,2485.1,2484.9,0.08280494]
[1730688791359,8.04805,2485.1,2484.9,0.08280494]
[1730688791549,4.02398,2485.1,2484.9,0.08280494]
[1730688792377,4.02358,2485.4,2484.9,0.08280494]
[1730688792525,0.8023,2485.6,2484.9,0.57063343]
[1730688792526,4.02368,2485.3,2484.9,0.57063343]
[1730688792731,4.02368,2485.3,2484.9,0.08280494]
[1730688794468,4.02385,2485.2,2484.9,0.08280494]
[1730688794970,4.02366,2485.3,2484.9,0.08280494]
[1730688795467,4.02375,2485.3,2484.9,0.08280494]
[1730688795666,4.60107602,2485.6,2484.9,0.08280494]
[1730688795959,4.02431,2484.9,2484.4,1.321]
[1730688796163,4.02431,2484.9,2484.4,0.771]
[1730688796364,4.02431,2484.9,2484.5,0.08321059]
[1730688797271,4.0241,2485.1,2484.5,0.16370401]
[1730688797442,4.0241,2485.1,2484.5,0.98171099]
[1730688797648,4.02421,2485.0,2484.5,0.98171099]
[1730688797951,4.02442,2484.9,2484.5,0.98171099]
[1730688798262,4.02398,2485.1,2484.5,0.98171099]
[1730688798978,4.02449,2484.8,2484.5,0.98171099]
[1730688799143,4.02449,2484.8,2484.5,0.08321059]
[1730688799554,4.02431,2484.9,2484.5,0.08321059]
[1730688799765,4.02479,2484.6,2484.5,0.08321059]
[1730688799948,4.82709,2484.6,2484.5,0.08321059]
[1730688800245,4.02515,2484.4,2484.1,0.771]
[1730688800666,4.02529,2484.3,2483.7,0.771]
[1730688800834,4.0255,2484.2,2483.8,0.479726]
[1730688801034,4.0255,2484.2,2483.7,0.771]
[1730688801376,0.8023,2484.2,2483.7,0.771]
[1730688801558,4.02512,2484.4,2483.8,4.02606]
[1730688802058,4.02511,2484.4,2483.7,0.85151517]
[1730688802256,4.02511,2484.4,2483.7,4.87767517]